fUSD/lending_fUSD_20240628
["ID","MTS","AMOUNT","RATE_DAILY","PERIOD"]
[330569178,1719581445302,-151.0,0.00021817,2]
[330569179,1719581445312,-151.0,0.00021817,2]
[330569180,1719581445321,-151.0,0.00021817,2]
[330569181,1719581445331,-151.0,0.00021817,2]
[330569182,1719581445341,-343.207134,0.00021817,2]
[330569183,1719581445351,-151.0,0.00021817,2]
[330569184,1719581445361,-343.207134,0.00021817,2]
[330569185,1719581445371,-450.749868,0.00021817,2]
[330569186,1719581445381,-151.0,0.00021817,2]
[330569187,1719581445391,-450.749868,0.00021817,2]
[330569188,1719581445402,-271.321109,0.00021817,2]
[330569189,1719581445414,-440.623304,0.00021817,2]
[330569190,1719581445424,-151.0,0.00021817,2]
[330569191,1719581445434,-440.623304,0.00021817,2]
[330569192,1719581445444,-151.0,0.00021817,2]
[330569193,1719581445456,-151.0,0.00021817,2]
[330569194,1719581445465,-151.0,0.00021817,2]
[330569195,1719581445475,-151.0,0.00021817,2]
[330569196,1719581445485,-151.0,0.00021817,2]
[330569197,1719581445496,-151.0,0.00021817,2]
[330569198,1719581445507,-3448.310382,0.00021817,2]
[330569199,1719581445517,-151.0,0.00021817,2]
[330569200,1719581445526,-3448.310382,0.00021817,2]
[330569201,1719581445539,-151.0,0.00021817,2]
[330569202,1719581445549,-151.0,0.00021817,2]
[330569203,1719581445558,-157.627105,0.00021817,2]
[330569204,1719581445572,-175.476583,0.00021817,2]
[330569205,1719581445583,-175.476583,0.00021817,2]
[330569206,1719581445593,-157.627105,0.00021817,2]
[330569207,1719581445603,-1568.26614724,0.00021817,2]
[330569208,1719581445613,-151.0,0.00021817,2]
[330569209,1719581445624,-500.0,0.0002182,2]
[330569210,1719581445633,-500.0,0.00021829,2]
[330569211,1719581445643,-500.0,0.00021838,2]
[330569212,1719581445653,-413.07503758,0.00021842,2]
[330569213,1719581445663,-500.0,0.00021847,2]
[330569214,1719581445673,-500.0,0.00021855,2]
[330569215,1719581445682,-500.0,0.00021864,2]
[330569216,1719581445692,-500.0,0.00021873,2]
[330569217,1719581445702,-500.0,0.00021882,2]
[330569218,1719581445712,-500.0,0.00021891,2]
[330569219,1719581445722,-500.0,0.00021899,2]
[330569220,1719581445732,-200.0,0.000219,7]
[330569221,1719581445742,-490.0,0.000219,4]
[330569222,1719581445752,-490.0,0.000219,4]
[330569223,1719581445762,-257.0,0.000219,2]
[330569224,1719581445771,-2039.883854,0.000219,2]
[330569225,1719581445783,-2000.0,0.000219,2]
[330569226,1719581445792,-200.0,0.00021907,7]
[330569227,1719581445802,-500.0,0.00021908,2]
[330569228,1719581445812,-1044.377531,0.00021912,2]
[330569229,1719581445821,-5508.7250044,0.00021912,2]
[330569230,1719581445831,-898.5026893,0.00021912,2]
[330569231,1719581445840,-3996.8502915,0.00021912,2]
[330569232,1719581445850,-1602.1048093,0.00021912,2]
[330569233,1719581445860,-5399.1700375,0.00021912,2]
[330569234,1719581445870,-1524.01299956,0.00021916,2]
[330569235,1719581445880,-150.0,0.00021916,2]
[330569236,1719581445892,-150.0,0.00021916,7]
[330569237,1719581445903,-311187.27097253,0.00021917,7]
[330569238,1719581445913,-500.0,0.00021917,3]
[330569240,1719581445923,-500.0,0.00021917,3]
[330569241,1719581445933,-500.0,0.00021917,3]
[330569242,1719581445942,-500.0,0.00021917,3]
[330569243,1719581445952,-500.0,0.00021917,3]
[330569244,1719581445963,-500.0,0.00021917,3]
[330569245,1719581445972,-500.0,0.00021917,3]
[330569246,1719581445982,-500.0,0.00021917,3]
[330569247,1719581445991,-500.0,0.00021917,3]
[330569248,1719581446001,-548.61,0.00021917,3]
[330569249,1719581446010,-500.0,0.00021917,3]
[330569250,1719581446020,-500.0,0.00021917,3]
[330569251,1719581446035,-783.65,0.00021917,3]
[330569252,1719581446045,-637.9261584,0.00021917,3]
[330569253,1719581446055,-500.0,0.00021917,3]
[330569254,1719581446064,-850.9,0.00021917,3]
[330569255,1719581446076,-514.0,0.00021917,3]
[330569256,1719581446087,-500.0,0.00021917,3]
[330569257,1719581446097,-500.0,0.00021917,3]
[330569258,1719581446107,-644.46184761,0.00021917,3]
[330569259,1719581446116,-699.06,0.00021917,3]
[330569260,1719581446125,-500.0,0.00021917,3]
[330569261,1719581446135,-500.0,0.00021917,3]
[330569263,1719581446144,-500.0,0.00021917,3]
[330569265,1719581446154,-1048.4,0.00021917,3]
[330569267,1719581446163,-500.0,0.00021917,3]
[330569268,1719581446173,-1001.0,0.00021917,3]
[330569269,1719581446182,-500.0,0.00021917,3]
[330569270,1719581446192,-1000.42,0.00021917,3]
[330569271,1719581446202,-891.89,0.00021917,3]
[330569272,1719581446211,-500.0,0.00021917,3]
[330569273,1719581446221,-681.81,0.00021917,3]
[330569274,1719581446230,-500.0,0.00021917,3]
[330569275,1719581446240,-500.0,0.00021917,3]
[330569276,1719581446249,-500.0,0.00021917,3]
[330569277,1719581446259,-500.0,0.00021917,3]
[330569278,1719581446268,-966.81,0.00021917,3]
[330569279,1719581446278,-500.0,0.00021917,3]
[330569280,1719581446290,-500.0,0.00021917,3]
[330569281,1719581446299,-525.77,0.00021917,3]
[330569282,1719581446309,-500.0,0.00021917,3]
[330569283,1719581446319,-500.0,0.00021917,3]
[330569284,1719581446328,-1387.96,0.00021917,3]
[330569285,1719581446338,-500.0,0.00021917,3]
[330569286,1719581446348,-500.0,0.00021917,3]
[330569287,1719581446359,-500.0,0.00021917,3]
[330569288,1719581446369,-666.31,0.00021917,3]
[330569289,1719581446379,-500.0,0.00021917,3]
[330569290,1719581446389,-500.0,0.00021917,3]
[330569291,1719581446404,-1442.81,0.00021917,3]
[330569292,1719581446414,-500.0,0.00021917,3]
[330569293,1719581446424,-1243.8,0.00021917,3]
[330569294,1719581446434,-682.07,0.00021917,3]
[330569295,1719581446447,-520.71,0.00021917,3]
[330569296,1719581446458,-500.0,0.00021917,3]
[330569297,1719581446468,-500.0,0.00021917,3]
[330569300,1719581446889,-1362.6,0.00021917,3]
[330569301,1719581446899,-500.0,0.00021917,3]
[330569303,1719581446910,-500.0,0.00021917,3]
[330569305,1719581446920,-500.0,0.00021917,3]
[330569307,1719581446933,-500.0,0.00021917,3]
[330569309,1719581446946,-1234.87,0.00021917,3]
[330569311,1719581446957,-586.3505797,0.00021917,3]
[330569313,1719581446972,-500.0,0.00021917,3]
[330569315,1719581446982,-1123.19,0.00021917,3]
[330569317,1719581446992,-500.0,0.00021917,3]
[330569318,1719581447001,-565.31,0.00021917,3]
[330569319,1719581447010,-500.0,0.00021917,3]
[330569320,1719581447020,-500.0,0.00021917,3]
[330569321,1719581447031,-594.55,0.00021917,3]
[330569322,1719581447040,-500.0,0.00021917,3]
[330569323,1719581447049,-500.0,0.00021917,3]
[330569324,1719581447059,-500.0,0.00021917,3]
[330569325,1719581447069,-731.52,0.00021917,3]
[330569326,1719581447080,-643.77,0.00021917,3]
[330569327,1719581447091,-1699.71,0.00021917,3]
[330569328,1719581447101,-500.0,0.00021917,3]
[330569329,1719581447111,-723.52,0.00021917,3]
[330569330,1719581447121,-1373.99,0.00021917,3]
[330569331,1719581447131,-500.0,0.00021917,3]
[330569332,1719581447141,-875.02,0.00021917,3]
[330569333,1719581447151,-558.04,0.00021917,3]
[330569334,1719581447161,-772.68,0.00021917,3]
[330569335,1719581447171,-500.0,0.00021917,3]
[330569336,1719581447183,-500.0,0.00021917,3]
[330569337,1719581447192,-1704.22,0.00021917,3]
[330569338,1719581447203,-500.0,0.00021917,3]
[330569339,1719581447213,-500.0,0.00021917,3]
[330569340,1719581447223,-500.0,0.00021917,3]
[330569341,1719581447233,-971.16,0.00021917,3]
[330569342,1719581447244,-500.0,0.00021917,3]
[330569343,1719581447254,-1145.01,0.00021917,3]
[330569344,1719581447264,-500.0,0.00021917,3]
[330569345,1719581447274,-500.0,0.00021917,3]
[330569346,1719581447287,-500.0,0.00021917,3]
[330569347,1719581447296,-500.0,0.00021917,3]
[330569348,1719581447306,-500.0,0.00021917,3]
[330569349,1719581447318,-500.0,0.00021917,3]
[330569350,1719581447328,-262.30417148,0.00021917,3]
[330569351,1719581447337,-750.08,0.00021917,3]
[330569352,1719581447347,-639.6,0.00021917,3]
[330569353,1719581447357,-748.25,0.00021917,3]
[330569354,1719581447367,-500.0,0.00021917,3]
[330569355,1719581447377,-618.0,0.00021917,3]
[330569356,1719581447387,-905.23,0.00021917,3]
[330569357,1719581447397,-500.0,0.00021917,3]
[330569358,1719581447407,-515.0,0.00021917,3]
[330569359,1719581447421,-666.21,0.00021917,3]
[330569360,1719581447431,-1407.05,0.00021917,3]
[330569361,1719581447441,-500.0,0.00021917,3]
[330569362,1719581447451,-500.0,0.00021917,3]
[330569363,1719581447463,-500.0,0.00021917,3]
[330569364,1719581447473,-500.0,0.00021917,3]
[330569365,1719581447483,-500.0,0.00021917,3]
[330569366,1719581447494,-674.3,0.00021917,3]
[330569367,1719581447505,-769.12,0.00021917,3]
[330569368,1719581447514,-500.0,0.00021917,3]
[330569369,1719581447524,-500.0,0.00021917,3]
[330569370,1719581447537,-715.06,0.00021917,3]
[330569371,1719581447547,-500.0,0.00021917,3]
[330569372,1719581447556,-500.0,0.00021917,3]
[330569373,1719581447566,-500.0,0.00021917,3]
[330569374,1719581447576,-1278.46,0.00021917,3]
[330569375,1719581447586,-500.0,0.00021917,3]
[330569376,1719581447596,-980.12,0.00021917,3]
[330569377,1719581447606,-500.0,0.00021917,3]
[330569378,1719581447615,-1184.68,0.00021917,3]
[330569379,1719581447625,-500.0,0.00021917,3]
[330569380,1719581447635,-843.12,0.00021917,3]
[330569381,1719581447644,-1239.44,0.00021917,3]
[330569382,1719581447655,-1206.36,0.00021917,3]
[330569383,1719581447665,-1609.18,0.00021917,3]
[330569384,1719581447675,-500.0,0.00021917,3]
[330569385,1719581447685,-500.0,0.00021917,3]
[330569386,1719581447695,-151.0,0.00021917,2]
[330569387,1719581447705,-151.0,0.00021917,2]
[330569388,1719581447715,-2934.42,0.00021917,3]
[330569389,1719581447726,-500.0,0.00021917,3]
[330569390,1719581447736,-1088.64,0.00021917,3]
[330569391,1719581447746,-500.0,0.00021917,3]
[330569392,1719581447756,-500.0,0.00021917,3]
[330569393,1719581447766,-500.0,0.00021917,3]
[330569394,1719581447776,-500.0,0.00021917,3]
[330569395,1719581447788,-550.00964414,0.00021917,3]
[330569396,1719581447798,-500.0,0.00021917,3]
[330569397,1719581447807,-500.0,0.00021917,3]
[330569398,1719581447816,-921.29,0.00021917,3]
[330569399,1719581447826,-1148.41,0.00021917,3]
[330569400,1719581447835,-500.0,0.00021917,3]
[330569401,1719581447844,-500.0,0.00021917,3]
[330569402,1719581447854,-1294.54,0.00021917,3]
[330569403,1719581447863,-500.0,0.00021917,3]
[330569404,1719581447872,-500.0,0.00021917,3]
[330569405,1719581447881,-157.813654,0.00021917,2]
[330569406,1719581447890,-1623.02,0.00021917,3]
[330569407,1719581447900,-556.63,0.00021917,3]
[330569408,1719581447910,-702.96,0.00021917,3]
[330569409,1719581447919,-500.0,0.00021917,3]
[330569410,1719581447928,-921.0,0.00021917,3]
[330569411,1719581447938,-564.60752105,0.00021917,3]
[330569412,1719581447948,-500.0,0.00021917,3]
[330569413,1719581447957,-500.0,0.00021917,3]
[330569414,1719581447967,-786.23,0.00021917,3]
[330569415,1719581447976,-500.0,0.00021917,3]
[330569416,1719581447986,-1040.32,0.00021917,3]
[330569417,1719581447996,-151.0,0.00021917,2]
[330569418,1719581448006,-4299.14,0.00021917,3]
[330569419,1719581448015,-517.36,0.00021917,3]
[330569420,1719581448024,-500.0,0.00021917,3]
[330569421,1719581448034,-1890.61,0.00021917,3]
[330569422,1719581448044,-500.0,0.00021917,3]
[330569423,1719581448053,-500.0,0.00021917,3]
[330569424,1719581448063,-500.0,0.00021917,3]
[330569425,1719581448075,-759.06,0.00021917,3]
[330569426,1719581448085,-500.0,0.00021917,3]
[330569427,1719581448095,-500.0,0.00021917,3]
[330569428,1719581448105,-500.0,0.00021917,3]
[330569429,1719581448114,-500.0,0.00021917,3]
[330569430,1719581448125,-1746.61,0.00021917,3]
[330569431,1719581448136,-500.0,0.00021917,3]
[330569432,1719581448146,-500.0,0.00021917,3]
[330569433,1719581448157,-500.0,0.00021917,3]
[330569434,1719581448167,-676.81,0.00021917,3]
[330569435,1719581448178,-951.7,0.00021917,3]
[330569436,1719581448188,-500.0,0.00021917,3]
[330569437,1719581448198,-500.0,0.00021917,3]
[330569438,1719581448208,-500.0,0.00021917,2]
[330569439,1719581448218,-500.0,0.00021917,3]
[330569440,1719581448228,-500.0,0.00021917,3]
[330569441,1719581448238,-500.0,0.00021917,3]
[330569442,1719581448248,-500.0,0.00021917,3]
[330569443,1719581448258,-500.0,0.00021917,3]
[330569444,1719581448268,-593.71000641,0.00021917,3]
[330569445,1719581448279,-1219.38,0.00021917,3]
[330569446,1719581448290,-1193.49,0.00021917,3]
[330569447,1719581448300,-500.0,0.00021917,3]
[330569448,1719581448310,-500.0,0.00021917,3]
[330569449,1719581448320,-500.0,0.00021917,3]
[330569450,1719581448331,-500.0,0.00021917,3]
[330569451,1719581448341,-500.0,0.00021917,3]
[330569452,1719581448352,-894.63,0.00021917,3]
[330569453,1719581448362,-358.69828593,0.00021917,3]
[330569454,1719581448372,-630.5,0.00021917,3]
[330569455,1719581448382,-1006.35,0.00021917,3]
[330569456,1719581448392,-1286.65,0.00021917,3]
[330569457,1719581448404,-500.0,0.00021917,3]
[330569458,1719581448416,-967.13,0.00021917,3]
[330569459,1719581448427,-609.79,0.00021917,3]
[330569460,1719581448436,-500.0,0.00021917,3]
[330569461,1719581448447,-500.0,0.00021917,3]
[330569462,1719581448457,-12161.34,0.00021917,3]
[330569463,1719581448467,-500.0,0.00021917,3]
[330569464,1719581448477,-500.0,0.00021917,3]
[330569465,1719581448491,-180.19940241,0.00021917,3]
[330569466,1719581448501,-1109.45,0.00021917,3]
[330569467,1719581448511,-1021.69,0.00021917,3]
[330569468,1719581448521,-500.0,0.00021917,3]
[330569469,1719581448534,-1886.28,0.00021917,3]
[330569470,1719581448544,-500.0,0.00021917,3]
[330569471,1719581448554,-600.16,0.00021917,3]
[330569472,1719581448566,-500.0,0.00021917,3]
[330569473,1719581448577,-500.0,0.00021917,3]
[330569474,1719581448587,-864.42,0.00021917,3]
[330569475,1719581448597,-500.0,0.00021917,3]
[330569476,1719581448606,-151.0,0.00021917,2]
[330569477,1719581448616,-500.0,0.00021917,3]
[330569478,1719581448626,-500.0,0.00021917,3]
[330569479,1719581448636,-809.83,0.00021917,3]
[330569480,1719581448646,-1150.19,0.00021917,3]
[330569481,1719581448656,-1107.4,0.00021917,3]
[330569482,1719581448666,-500.0,0.00021917,3]
[330569483,1719581448676,-1789.65,0.00021917,3]
[330569484,1719581448686,-943.45,0.00021917,3]
[330569485,1719581448696,-2040.73,0.00021917,3]
[330569486,1719581448706,-915.47,0.00021917,3]
[330569487,1719581448715,-614.23933885,0.00021917,3]
[330569488,1719581448725,-485.13775318,0.00021917,3]
[330569489,1719581448735,-959.08,0.00021917,3]
[330569490,1719581448745,-588.4,0.00021917,3]
[330569491,1719581448755,-1564.89,0.00021917,3]
[330569492,1719581448765,-500.0,0.00021917,3]
[330569493,1719581448774,-749.67,0.00021917,3]
[330569494,1719581448786,-1028.85,0.00021917,3]
[330569495,1719581448795,-1209.21,0.00021917,3]
[330569496,1719581448805,-565.35,0.00021917,3]
[330569497,1719581448815,-500.0,0.00021917,3]
[330569498,1719581448825,-550.95,0.00021917,3]
[330569499,1719581448834,-500.0,0.00021917,3]
[330569500,1719581448844,-500.0,0.00021917,3]
[330569501,1719581448854,-528.27,0.00021917,3]
[330569502,1719581448863,-500.0,0.00021917,3]
[330569503,1719581448873,-811.57,0.00021917,3]
[330569504,1719581448883,-500.0,0.00021917,3]
[330569505,1719581448893,-738.44,0.00021917,3]
[330569506,1719581448903,-1190.19,0.00021917,3]
[330569507,1719581448913,-164.08995209,0.00021917,3]
[330569508,1719581448922,-1534.77,0.00021917,3]
[330569509,1719581448937,-500.0,0.00021917,3]
[330569510,1719581448947,-500.0,0.00021917,3]
[330569511,1719581448958,-538.49,0.00021917,3]
[330569512,1719581448968,-953.75,0.00021917,3]
[330569513,1719581448979,-966.78,0.00021917,3]
[330569514,1719581448989,-500.0,0.00021917,3]
[330569515,1719581449000,-500.0,0.00021917,3]
[330569516,1719581449009,-1394.69,0.00021917,3]
[330569517,1719581449019,-500.0,0.00021917,3]
[330569518,1719581449031,-1240.95,0.00021917,3]
[330569519,1719581449041,-500.0,0.00021917,3]
[330569520,1719581449051,-151.0,0.00021917,2]
[330569521,1719581449061,-151.0,0.00021917,2]
[330569522,1719581449074,-500.0,0.00021917,3]
[330569523,1719581449084,-579.58,0.00021917,3]
[330569524,1719581449094,-1619.45,0.00021917,3]
[330569525,1719581449104,-500.0,0.00021917,3]
[330569526,1719581449115,-1557.65,0.00021917,3]
[330569527,1719581449125,-526.66918242,0.00021917,3]
[330569528,1719581449137,-500.0,0.00021917,3]
[330569529,1719581449147,-500.0,0.00021917,3]
[330569530,1719581449157,-500.0,0.00021917,3]
[330569531,1719581449167,-500.0,0.00021917,3]
[330569532,1719581449179,-500.0,0.00021917,3]
[330569533,1719581449189,-500.0,0.00021917,3]
[330569534,1719581449198,-890.97,0.00021917,3]
[330569535,1719581449208,-544.49,0.00021917,3]
[330569536,1719581449219,-645.74,0.00021917,3]
[330569537,1719581449231,-1135.0,0.00021917,3]
[330569538,1719581449242,-1024.34,0.00021917,3]
[330569539,1719581449252,-500.0,0.00021917,3]
[330569540,1719581449261,-500.0,0.00021917,3]
[330569541,1719581449271,-793.23,0.00021917,3]
[330569542,1719581449282,-500.0,0.00021917,3]
[330569543,1719581449291,-857.23,0.00021917,3]
[330569544,1719581449302,-500.0,0.00021917,3]
[330569545,1719581449312,-2435.24,0.00021917,3]
[330569546,1719581449321,-500.0,0.00021917,3]
[330569547,1719581449331,-1164.19,0.00021917,3]
[330569548,1719581449344,-573.25,0.00021917,3]
[330569549,1719581449523,-500.0,0.00021917,3]
[330569550,1719581449537,-1235.12,0.00021917,3]
[330569551,1719581449547,-500.0,0.00021917,3]
[330569552,1719581449557,-500.0,0.00021917,3]
[330569553,1719581449567,-507.95,0.00021917,3]
[330569554,1719581449577,-500.0,0.00021917,3]
[330569555,1719581449587,-500.0,0.00021917,3]
[330569556,1719581449596,-546.48,0.00021917,3]
[330569557,1719581449605,-500.0,0.00021917,3]
[330569558,1719581449615,-1497.15,0.00021917,3]
[330569559,1719581449624,-1025.01,0.00021917,3]
[330569560,1719581449634,-500.0,0.00021917,3]
[330569561,1719581449644,-1511.59,0.00021917,3]
[330569562,1719581449654,-667.81,0.00021917,3]
[330569563,1719581449665,-672.89,0.00021917,3]
[330569564,1719581449674,-500.0,0.00021917,3]
[330569565,1719581449684,-500.0,0.00021917,3]
[330569566,1719581449694,-500.0,0.00021917,3]
[330569567,1719581449704,-1143.19,0.00021917,3]
[330569568,1719581449714,-500.0,0.00021917,3]
[330569569,1719581449723,-500.0,0.00021917,3]
[330569570,1719581449732,-983.64,0.00021917,3]
[330569571,1719581449742,-151.0,0.00021917,2]
[330569572,1719581449751,-500.0,0.00021917,3]
[330569573,1719581449761,-159.080352,0.00021917,2]
[330569574,1719581449770,-500.0,0.00021917,3]
[330569575,1719581449782,-500.0,0.00021917,3]
[330569576,1719581449792,-1110.23,0.00021917,3]
[330569577,1719581449801,-500.0,0.00021917,3]
[330569578,1719581449810,-500.0,0.00021917,3]
[330569579,1719581449820,-1270.28,0.00021917,3]
[330569580,1719581449829,-546.39,0.00021917,3]
[330569581,1719581449838,-500.0,0.00021917,3]
[330569582,1719581449847,-585.88,0.00021917,3]
[330569583,1719581449856,-500.0,0.00021917,3]
[330569584,1719581449866,-500.0,0.00021917,3]
[330569585,1719581449875,-500.0,0.00021917,3]
[330569586,1719581449884,-780.76,0.00021917,3]
[330569587,1719581449894,-500.0,0.00021917,3]
[330569588,1719581449903,-500.0,0.00021917,3]
[330569589,1719581449913,-500.0,0.00021917,3]
[330569590,1719581449923,-500.0,0.00021917,3]
[330569591,1719581449933,-500.0,0.00021917,3]
[330569592,1719581449942,-500.0,0.00021917,3]
[330569593,1719581449951,-500.0,0.00021917,3]
[330569594,1719581449961,-500.0,0.00021917,3]
[330569595,1719581449971,-500.0,0.00021917,3]
[330569596,1719581449981,-647.18,0.00021917,3]
[330569597,1719581449991,-962.53,0.00021917,3]
[330569598,1719581450002,-500.0,0.00021917,3]
[330569599,1719581450011,-500.0,0.00021917,3]
[330569600,1719581450020,-866.59,0.00021917,3]
[330569601,1719581450032,-500.0,0.00021917,3]
[330569602,1719581450043,-500.0,0.00021917,3]
[330569603,1719581450056,-1164.07,0.00021917,3]
[330569604,1719581450065,-500.0,0.00021917,3]
[330569605,1719581450075,-568.2,0.00021917,3]
[330569606,1719581450085,-670.28,0.00021917,3]
[330569607,1719581450095,-637.91,0.00021917,3]
[330569608,1719581450105,-509.2,0.00021917,3]
[330569609,1719581450114,-1019.47,0.00021917,3]
[330569610,1719581450123,-500.0,0.00021917,3]
[330569611,1719581450133,-500.0,0.00021917,3]
[330569612,1719581450142,-500.0,0.00021917,3]
[330569613,1719581450151,-3050.86,0.00021917,3]
[330569614,1719581450161,-1016.18,0.00021917,3]
[330569615,1719581450170,-500.0,0.00021917,3]
[330569616,1719581450181,-500.0,0.00021917,3]
[330569617,1719581450191,-500.0,0.00021917,3]
[330569618,1719581450200,-853.39,0.00021917,3]
[330569619,1719581450210,-500.0,0.00021917,3]
[330569620,1719581450219,-500.0,0.00021917,3]
[330569621,1719581450228,-500.0,0.00021917,3]
[330569622,1719581450237,-1356.44,0.00021917,3]
[330569623,1719581450247,-151.0,0.00021917,2]
[330569624,1719581450256,-500.0,0.00021917,3]
[330569625,1719581450265,-151.0,0.00021917,2]
[330569626,1719581450275,-151.0,0.00021917,2]
[330569627,1719581450288,-151.0,0.00021917,2]
[330569628,1719581450297,-151.0,0.00021917,2]
[330569629,1719581450306,-151.0,0.00021917,2]
[330569630,1719581450315,-151.0,0.00021917,2]
[330569631,1719581450323,-500.0,0.00021917,3]
[330569632,1719581450332,-151.0,0.00021917,2]
[330569633,1719581450341,-500.0,0.00021917,3]
[330569634,1719581450351,-151.0,0.00021917,2]
[330569635,1719581450360,-316.60724913,0.00021917,3]
[330569636,1719581450370,-151.0,0.00021917,2]
[330569637,1719581450379,-151.0,0.00021917,2]
[330569638,1719581450389,-986.96,0.00021917,3]
[330569639,1719581450401,-500.0,0.00021917,3]
[330569640,1719581450413,-200.0,0.00021917,3]
[330569641,1719581450425,-500.0,0.00021917,3]
[330569642,1719581450435,-500.0,0.00021917,3]
[330569643,1719581450446,-327.40940763,0.00021917,3]
[330569644,1719581450455,-796.45,0.00021917,3]
[330569645,1719581450465,-985.06,0.00021917,3]
[330569646,1719581450475,-500.0,0.00021917,3]
[330569647,1719581450491,-500.0,0.00021917,3]
[330569648,1719581450500,-500.0,0.00021917,3]
[330569649,1719581450509,-500.0,0.00021917,3]
[330569650,1719581450519,-589.69,0.00021917,3]
[330569651,1719581450528,-982.63,0.00021917,3]
[330569652,1719581450539,-500.0,0.00021917,3]
[330569653,1719581450548,-500.0,0.00021917,3]
[330569654,1719581450557,-500.0,0.00021917,3]
[330569655,1719581450566,-500.0,0.00021917,3]
[330569656,1719581450575,-151.0,0.00021917,2]
[330569657,1719581450584,-151.0,0.00021917,2]
[330569658,1719581450595,-500.0,0.00021917,3]
[330569659,1719581450604,-500.0,0.00021917,3]
[330569660,1719581450614,-500.0,0.00021917,3]
[330569661,1719581450624,-947.64,0.00021917,3]
[330569662,1719581450633,-169.783095,0.00021917,2]
[330569663,1719581450642,-500.0,0.00021917,3]
[330569664,1719581450651,-1023.07,0.00021917,3]
[330569665,1719581450660,-1003.72,0.00021917,3]
[330569666,1719581450670,-500.0,0.00021917,3]
[330569667,1719581450679,-500.0,0.00021917,3]
[330569668,1719581450689,-2689.38,0.00021917,3]
[330569669,1719581450698,-151.0,0.00021917,2]
[330569670,1719581450708,-151.0,0.00021917,2]
[330569671,1719581450718,-151.0,0.00021917,2]
[330569672,1719581450727,-151.0,0.00021917,2]
[330569673,1719581450736,-640.9,0.00021917,3]
[330569674,1719581450745,-151.0,0.00021917,2]
[330569675,1719581450754,-500.0,0.00021917,3]
[330569676,1719581450763,-500.0,0.00021917,3]
[330569677,1719581450772,-500.0,0.00021917,3]
[330569678,1719581450781,-902.32,0.00021917,3]
[330569679,1719581450791,-500.0,0.00021917,3]
[330569680,1719581450800,-2932.71,0.00021917,3]
[330569681,1719581450809,-500.0,0.00021917,3]
[330569682,1719581450818,-500.0,0.00021917,3]
[330569683,1719581450828,-500.0,0.00021917,3]
[330569684,1719581450838,-500.0,0.00021917,3]
[330569685,1719581450848,-1128.53,0.00021917,3]
[330569686,1719581450860,-500.0,0.00021917,3]
[330569687,1719581450871,-500.0,0.00021917,3]
[330569688,1719581450879,-939.79,0.00021917,3]
[330569689,1719581450889,-500.0,0.00021917,3]
[330569690,1719581450898,-500.0,0.00021917,3]
[330569691,1719581450907,-500.0,0.00021917,3]